[Event "Titled Tuesday Blitz November 07 Late 2023"]
[White "Alice, Mateus Felizardo Viageiro"]
[Black "Lutz, Igor Oscar"]
[WhiteFideId "14800047"]
[BlackFideId "2110806"]
[WhiteElo "2194"]
[BlackElo "1852"]
[Result "1-0"]
[Round "5"]
[TimeControl "180+1"]
[Date "2023.11.07"]
[WhiteClock "0:00:16"]
[BlackClock "0:00:01"]
[Board "147"]

1. e4 {[%clk 0:03:00]}  c5 {[%clk 0:03:00]} 2. Nf3 {[%clk 0:02:58]}  Nc6 {[%clk 0:02:59]} 3. d4 {[%clk 0:02:57]}  cxd4 {[%clk 0:03:00]} 4. Nxd4 {[%clk 0:02:57]}  Nf6 {[%clk 0:03:01]} 5. Nc3 {[%clk 0:02:56]}  d6 {[%clk 0:03:00]} 6. Bg5 {[%clk 0:02:52]}  e6 {[%clk 0:02:48]} 7. Qd2 {[%clk 0:02:51]}  Be7 {[%clk 0:02:48]} 8. O-O-O {[%clk 0:02:49]}  Nxd4 {[%clk 0:02:46]} 9. Qxd4 {[%clk 0:02:47]}  O-O {[%clk 0:02:46]} 10. f4 {[%clk 0:02:45]}  Qa5 {[%clk 0:02:40]} 11. Kb1 {[%clk 0:02:41]}  Rd8 {[%clk 0:02:28]} 12. Bc4 {[%clk 0:02:37]}  a6 {[%clk 0:02:15]} 13. Bb3 {[%clk 0:02:30]}  b5 {[%clk 0:02:14]} 14. a3 {[%clk 0:02:22]}  Bb7 {[%clk 0:02:07]} 15. Rhe1 {[%clk 0:02:12]}  h6 {[%clk 0:02:06]} 16. Bh4 {[%clk 0:02:07]}  Rac8 {[%clk 0:01:49]} 17. g4 {[%clk 0:02:01]}  e5 {[%clk 0:01:29]} 18. Qg1 {[%clk 0:01:53]}  Rxc3 {[%clk 0:01:17]} 19. Bxf6 {[%clk 0:01:46]}  Bxf6 {[%clk 0:01:10]} 20. g5 {[%clk 0:01:37]}  hxg5 {[%clk 0:00:58]} 21. fxg5 {[%clk 0:01:34]}  Be7 {[%clk 0:00:58]} 22. bxc3 {[%clk 0:01:29]}  Qxc3 {[%clk 0:00:43]} 23. g6 {[%clk 0:01:26]}  d5 {[%clk 0:00:42]} 24. Rd3 {[%clk 0:01:16]}  Qa5 {[%clk 0:00:34]} 25. gxf7+ {[%clk 0:01:13]}  Kf8 {[%clk 0:00:34]} 26. Rg3 {[%clk 0:00:48]}  Bf6 {[%clk 0:00:31]} 27. Rf1 {[%clk 0:00:45]}  Kxf7 {[%clk 0:00:07]} 28. Rxg7+ {[%clk 0:00:40]}  Ke6 {[%clk 0:00:08]} 29. Rg6 {[%clk 0:00:39]}  Rf8 {[%clk 0:00:08]} 30. Qg4+ {[%clk 0:00:32]}  Ke7 {[%clk 0:00:07]} 31. exd5 {[%clk 0:00:23]}  Qxa3 {[%clk 0:00:06]} 32. Qe6+ {[%clk 0:00:21]}  Kd8 {[%clk 0:00:05]} 33. Rgxf6 {[%clk 0:00:21]}  Rxf6 {[%clk 0:00:04]} 34. Rxf6 {[%clk 0:00:17]}  Qe7 {[%clk 0:00:01]} 35. Qxe7+ {[%clk 0:00:15]}  Kxe7 {[%clk 0:00:01]} 36. Re6+ {[%clk 0:00:15]}  Kd7 {[%clk 0:00:02]} 37. Rxe5 {[%clk 0:00:16]}  Kd6 {[%clk 0:00:01]} 38. Re6+ {[%clk 0:00:16]} 1-0


[Site "https://www.chess.com"]

[Event "Titled Tuesday Blitz November 07 Late 2023"]
[White "Molina, Jessica"]
[Black "Feliz Dotel, Dewar Bienvenido"]
[WhiteFideId "3303888"]
[BlackFideId "6402801"]
[WhiteElo "1836"]
[BlackElo "2157"]
[Result "1-0"]
[Round "5"]
[TimeControl "180+1"]
[Date "2023.11.07"]
[WhiteClock "0:00:47"]
[BlackClock "0:00:00"]
[Board "148"]

1. d4 {[%clk 0:03:00]}  d5 {[%clk 0:02:56]} 2. Nf3 {[%clk 0:02:59]}  e6 {[%clk 0:02:56]} 3. Bf4 {[%clk 0:02:58]}  c5 {[%clk 0:02:56]} 4. e3 {[%clk 0:02:57]}  Bd6 {[%clk 0:02:53]} 5. Bg3 {[%clk 0:02:55]}  Nf6 {[%clk 0:02:50]} 6. c3 {[%clk 0:02:53]}  O-O {[%clk 0:02:47]} 7. Bd3 {[%clk 0:02:52]}  b6 {[%clk 0:02:46]} 8. O-O {[%clk 0:02:51]}  Bxg3 {[%clk 0:02:46]} 9. hxg3 {[%clk 0:02:51]}  Ba6 {[%clk 0:02:45]} 10. Bxa6 {[%clk 0:02:50]}  Nxa6 {[%clk 0:02:45]} 11. Nbd2 {[%clk 0:02:49]}  Nb8 {[%clk 0:02:31]} 12. Ne5 {[%clk 0:02:47]}  Qc7 {[%clk 0:02:30]} 13. Qf3 {[%clk 0:02:46]}  Nc6 {[%clk 0:02:22]} 14. Qf4 {[%clk 0:02:41]}  Nxe5 {[%clk 0:02:10]} 15. Qxe5 {[%clk 0:02:37]}  Qxe5 {[%clk 0:02:08]} 16. dxe5 {[%clk 0:02:38]}  Nd7 {[%clk 0:02:06]} 17. f4 {[%clk 0:02:38]}  f5 {[%clk 0:01:52]} 18. Nf3 {[%clk 0:02:35]}  h6 {[%clk 0:01:44]} 19. Rfd1 {[%clk 0:02:31]}  Rf7 {[%clk 0:01:36]} 20. Rd2 {[%clk 0:02:29]}  Nb8 {[%clk 0:01:29]} 21. Kf2 {[%clk 0:02:16]}  Nc6 {[%clk 0:01:20]} 22. a3 {[%clk 0:02:15]}  b5 {[%clk 0:01:19]} 23. Rad1 {[%clk 0:02:10]}  a5 {[%clk 0:01:16]} 24. Ne1 {[%clk 0:02:04]}  c4 {[%clk 0:01:08]} 25. Nc2 {[%clk 0:02:02]}  Rb7 {[%clk 0:01:05]} 26. Kf3 {[%clk 0:01:54]}  b4 {[%clk 0:01:05]} 27. g4 {[%clk 0:01:48]}  bxc3 {[%clk 0:01:01]} 28. bxc3 {[%clk 0:01:48]}  g6 {[%clk 0:00:50]} 29. gxf5 {[%clk 0:01:43]}  gxf5 {[%clk 0:00:50]} 30. g4 {[%clk 0:01:43]}  fxg4+ {[%clk 0:00:42]} 31. Kxg4 {[%clk 0:01:44]}  Rb3 {[%clk 0:00:42]} 32. Nd4 {[%clk 0:01:36]}  Nxd4 {[%clk 0:00:39]} 33. Rxd4 {[%clk 0:01:30]}  Rxa3 {[%clk 0:00:29]} 34. e4 {[%clk 0:01:30]}  Rxc3 {[%clk 0:00:07]} 35. exd5 {[%clk 0:01:29]}  exd5 {[%clk 0:00:08]} 36. Rxd5 {[%clk 0:01:29]}  Rd3 {[%clk 0:00:08]} 37. R1xd3 {[%clk 0:01:28]}  cxd3 {[%clk 0:00:09]} 38. Rxd3 {[%clk 0:01:28]}  a4 {[%clk 0:00:10]} 39. Ra3 {[%clk 0:01:27]}  Kf7 {[%clk 0:00:10]} 40. f5 {[%clk 0:01:26]}  Ra5 {[%clk 0:00:10]} 41. Kf4 {[%clk 0:01:25]}  Ke7 {[%clk 0:00:09]} 42. Ke4 {[%clk 0:01:07]}  h5 {[%clk 0:00:09]} 43. Kf4 {[%clk 0:01:04]}  Rb5 {[%clk 0:00:06]} 44. Rxa4 {[%clk 0:01:01]}  h4 {[%clk 0:00:03]} 45. Ra7+ {[%clk 0:00:59]}  Kf8 {[%clk 0:00:02]} 46. Rh7 {[%clk 0:00:48]}  Rb4+ {[%clk 0:00:00]} 47. Kg5 {[%clk 0:00:47]} 1-0


[Site "https://www.chess.com"]

[Event "Titled Tuesday Blitz November 07 Late 2023"]
[White "Duda, Jan-Krzysztof"]
[Black "Makarian, Rudik"]
[WhiteFideId "1170546"]
[BlackFideId "44105681"]
[WhiteElo "3095"]
[BlackElo "2986"]
[Result "0-1"]
[Round "6"]
[TimeControl "180+1"]
[Date "2023.11.07"]
[WhiteClock "0:00:02"]
[BlackClock "0:00:12"]
[Board "2"]

1. d4 {[%clk 0:03:00]}  Nf6 {[%clk 0:02:59]} 2. Bg5 {[%clk 0:03:00]}  d5 {[%clk 0:02:59]} 3. e3 {[%clk 0:02:58]}  Ne4 {[%clk 0:02:59]} 4. Bf4 {[%clk 0:02:57]}  c6 {[%clk 0:02:51]} 5. Bd3 {[%clk 0:02:55]}  g6 {[%clk 0:02:28]} 6. Nf3 {[%clk 0:02:50]}  Bg7 {[%clk 0:02:26]} 7. Nbd2 {[%clk 0:02:48]}  Nxd2 {[%clk 0:02:26]} 8. Qxd2 {[%clk 0:02:49]}  O-O {[%clk 0:02:25]} 9. c4 {[%clk 0:02:42]}  a5 {[%clk 0:02:17]} 10. O-O {[%clk 0:02:40]}  Be6 {[%clk 0:02:14]} 11. Rac1 {[%clk 0:02:35]}  dxc4 {[%clk 0:02:08]} 12. Bxc4 {[%clk 0:02:36]}  Bxc4 {[%clk 0:02:04]} 13. Rxc4 {[%clk 0:02:37]}  Nd7 {[%clk 0:02:05]} 14. Rd1 {[%clk 0:02:25]}  Qb6 {[%clk 0:02:04]} 15. e4 {[%clk 0:02:13]}  Qb5 {[%clk 0:01:52]} 16. Qc2 {[%clk 0:02:12]}  a4 {[%clk 0:01:42]} 17. h4 {[%clk 0:02:06]}  Rfe8 {[%clk 0:01:41]} 18. e5 {[%clk 0:02:05]}  a3 {[%clk 0:01:20]} 19. b3 {[%clk 0:02:04]}  Qd5 {[%clk 0:01:19]} 20. h5 {[%clk 0:02:01]}  Red8 {[%clk 0:01:08]} 21. Bg5 {[%clk 0:01:49]}  Qe6 {[%clk 0:01:04]} 22. Re1 {[%clk 0:01:27]}  Nb6 {[%clk 0:00:59]} 23. Rc5 {[%clk 0:01:25]}  Nd5 {[%clk 0:00:59]} 24. Re4 {[%clk 0:01:24]}  Nb4 {[%clk 0:00:44]} 25. Qe2 {[%clk 0:01:18]}  b6 {[%clk 0:00:44]} 26. Rc4 {[%clk 0:01:14]}  Nd5 {[%clk 0:00:35]} 27. Bd2 {[%clk 0:01:13]}  h6 {[%clk 0:00:28]} 28. hxg6 {[%clk 0:01:09]}  fxg6 {[%clk 0:00:29]} 29. Qd3 {[%clk 0:00:20]}  Rf8 {[%clk 0:00:25]} 30. Re1 {[%clk 0:00:19]}  Rac8 {[%clk 0:00:19]} 31. Qe4 {[%clk 0:00:19]}  b5 {[%clk 0:00:15]} 32. Rc5 {[%clk 0:00:17]}  g5 {[%clk 0:00:15]} 33. Rec1 {[%clk 0:00:17]}  Qd7 {[%clk 0:00:08]} 34. Nh2 {[%clk 0:00:12]}  e6 {[%clk 0:00:07]} 35. Be3 {[%clk 0:00:10]}  Rf7 {[%clk 0:00:06]} 36. Qc2 {[%clk 0:00:09]}  Bf8 {[%clk 0:00:05]} 37. Rxc6 {[%clk 0:00:07]}  Nb4 {[%clk 0:00:01]} 38. Rxc8 {[%clk 0:00:07]}  Nxc2 {[%clk 0:00:02]} 39. R1xc2 {[%clk 0:00:08]}  Kg7 {[%clk 0:00:02]} 40. Ng4 {[%clk 0:00:08]}  Qd5 {[%clk 0:00:03]} 41. Nf6 {[%clk 0:00:07]}  Qb7 {[%clk 0:00:03]} 42. Ne8+ {[%clk 0:00:06]}  Kg6 {[%clk 0:00:03]} 43. Nf6 {[%clk 0:00:05]}  b4 {[%clk 0:00:03]} 44. R8c4 {[%clk 0:00:03]}  Qb5 {[%clk 0:00:03]} 45. Ne4 {[%clk 0:00:03]}  Qd5 {[%clk 0:00:03]} 46. Nf6 {[%clk 0:00:03]}  Qb7 {[%clk 0:00:02]} 47. Rc6 {[%clk 0:00:03]}  Qb5 {[%clk 0:00:03]} 48. Rxe6 {[%clk 0:00:03]}  Kf5 {[%clk 0:00:03]} 49. Rec6 {[%clk 0:00:03]}  g4 {[%clk 0:00:03]} 50. Rc1 {[%clk 0:00:03]}  Qe2 {[%clk 0:00:02]} 51. Ne8 {[%clk 0:00:03]}  Qxa2 {[%clk 0:00:02]} 52. e6 {[%clk 0:00:04]}  Re7 {[%clk 0:00:02]} 53. Nd6+ {[%clk 0:00:04]}  Kxe6 {[%clk 0:00:02]} 54. Nc8+ {[%clk 0:00:04]}  Kf7 {[%clk 0:00:03]} 55. Nxe7 {[%clk 0:00:04]}  Bxe7 {[%clk 0:00:04]} 56. Rxh6 {[%clk 0:00:04]}  Qxb3 {[%clk 0:00:03]} 57. Rc7 {[%clk 0:00:05]}  Qb1+ {[%clk 0:00:03]} 58. Kh2 {[%clk 0:00:05]}  a2 {[%clk 0:00:04]} 59. Bg5 {[%clk 0:00:05]}  a1=Q {[%clk 0:00:04]} 60. Rxe7+ {[%clk 0:00:05]}  Kg8 {[%clk 0:00:04]} 61. Rd6 {[%clk 0:00:04]}  Qh1+ {[%clk 0:00:04]} 62. Kg3 {[%clk 0:00:05]}  Qc3+ {[%clk 0:00:05]} 63. Be3 {[%clk 0:00:04]}  Qc8 {[%clk 0:00:05]} 64. Rg6+ {[%clk 0:00:04]}  Kh8 {[%clk 0:00:05]} 65. Re5 {[%clk 0:00:05]}  Qh7 {[%clk 0:00:05]} 66. Rxg4 {[%clk 0:00:05]}  b3 {[%clk 0:00:05]} 67. Rh4 {[%clk 0:00:05]}  Qxh4+ {[%clk 0:00:05]} 68. Kxh4 {[%clk 0:00:06]}  Qb8 {[%clk 0:00:04]} 69. Bg5 {[%clk 0:00:03]}  b2 {[%clk 0:00:04]} 70. Bf6+ {[%clk 0:00:03]}  Kg8 {[%clk 0:00:04]} 71. Rg5+ {[%clk 0:00:04]}  Kf7 {[%clk 0:00:04]} 72. Be5 {[%clk 0:00:03]}  Qb3 {[%clk 0:00:05]} 73. Rg7+ {[%clk 0:00:04]}  Ke6 {[%clk 0:00:05]} 74. Rg6+ {[%clk 0:00:04]}  Kd5 {[%clk 0:00:05]} 75. Rd6+ {[%clk 0:00:04]}  Ke4 {[%clk 0:00:05]} 76. f3+ {[%clk 0:00:04]}  Kd3 {[%clk 0:00:06]} 77. g4 {[%clk 0:00:04]}  b1=Q {[%clk 0:00:07]} 78. Kg5 {[%clk 0:00:04]}  Qh1 {[%clk 0:00:07]} 79. f4 {[%clk 0:00:04]}  Qbd1 {[%clk 0:00:07]} 80. Rg6 {[%clk 0:00:04]}  Qh3 {[%clk 0:00:08]} 81. Kf6 {[%clk 0:00:04]}  Ke4 {[%clk 0:00:07]} 82. f5 {[%clk 0:00:04]}  Qdxg4 {[%clk 0:00:07]} 83. Rxg4+ {[%clk 0:00:05]}  Qxg4 {[%clk 0:00:08]} 84. Ke6 {[%clk 0:00:06]}  Qxf5+ {[%clk 0:00:08]} 85. Kd6 {[%clk 0:00:06]}  Qg6+ {[%clk 0:00:09]} 86. Kc5 {[%clk 0:00:07]}  Qe6 {[%clk 0:00:08]} 87. Bc7 {[%clk 0:00:06]}  Qd5+ {[%clk 0:00:09]} 88. Kb6 {[%clk 0:00:07]}  Qxd4+ {[%clk 0:00:09]} 89. Kc6 {[%clk 0:00:07]}  Qc4+ {[%clk 0:00:09]} 90. Kd6 {[%clk 0:00:08]}  Qa6+ {[%clk 0:00:10]} 91. Kc5 {[%clk 0:00:08]}  Qa3+ {[%clk 0:00:10]} 92. Kc6 {[%clk 0:00:08]}  Qc3+ {[%clk 0:00:10]} 93. Kd6 {[%clk 0:00:08]}  Qd4+ {[%clk 0:00:10]} 94. Kc6 {[%clk 0:00:08]}  Qd5+ {[%clk 0:00:11]} 95. Kb6 {[%clk 0:00:08]}  Kd4 {[%clk 0:00:11]} 96. Bb8 {[%clk 0:00:07]}  Kc4 {[%clk 0:00:11]} 97. Bc7 {[%clk 0:00:07]}  Qe6+ {[%clk 0:00:12]} 98. Kb7 {[%clk 0:00:02]}  Kb5 {[%clk 0:00:12]} 0-1


[Site "https://www.chess.com"]

[Event "Titled Tuesday Blitz November 07 Late 2023"]
[White "Carlsen, Magnus"]
[Black "Oparin, Grigoriy"]
[WhiteFideId "1503014"]
[BlackFideId "24125890"]
[WhiteElo "3266"]
[BlackElo "3007"]
[Result "1-0"]
[Round "6"]
[TimeControl "180+1"]
[Date "2023.11.07"]
[WhiteClock "0:00:57"]
[BlackClock "0:00:13"]
[Board "3"]

1. h4 {[%clk 0:03:00]}  b6 {[%clk 0:02:56]} 2. e4 {[%clk 0:02:58]}  Bb7 {[%clk 0:02:56]} 3. Nc3 {[%clk 0:02:57]}  e6 {[%clk 0:02:57]} 4. d4 {[%clk 0:02:50]}  Bb4 {[%clk 0:02:54]} 5. Bd3 {[%clk 0:02:44]}  Nf6 {[%clk 0:02:52]} 6. e5 {[%clk 0:02:28]}  Ne4 {[%clk 0:02:43]} 7. Bxe4 {[%clk 0:02:16]}  Bxe4 {[%clk 0:02:41]} 8. Qg4 {[%clk 0:02:17]}  Bxc2 {[%clk 0:01:44]} 9. Qxg7 {[%clk 0:02:16]}  Rf8 {[%clk 0:01:45]} 10. Bg5 {[%clk 0:02:16]}  Be7 {[%clk 0:01:41]} 11. Rc1 {[%clk 0:01:45]}  Bxg5 {[%clk 0:01:35]} 12. Rxc2 {[%clk 0:01:44]}  Be7 {[%clk 0:01:33]} 13. Qxh7 {[%clk 0:01:43]}  Nc6 {[%clk 0:01:33]} 14. Nf3 {[%clk 0:01:43]}  Qc8 {[%clk 0:01:15]} 15. O-O {[%clk 0:01:38]}  Qb7 {[%clk 0:01:10]} 16. d5 {[%clk 0:01:24]}  Nb4 {[%clk 0:01:07]} 17. dxe6 {[%clk 0:01:23]}  Nxc2 {[%clk 0:01:03]} 18. exd7+ {[%clk 0:01:21]}  Kxd7 {[%clk 0:00:54]} 19. Qxc2 {[%clk 0:01:20]}  Qc6 {[%clk 0:00:42]} 20. Rd1+ {[%clk 0:01:12]}  Kc8 {[%clk 0:00:36]} 21. Nd4 {[%clk 0:01:11]}  Qg6 {[%clk 0:00:36]} 22. Nf5 {[%clk 0:01:02]}  Bd8 {[%clk 0:00:17]} 23. Qe4 {[%clk 0:00:58]}  Rb8 {[%clk 0:00:14]} 24. Nb5 {[%clk 0:00:58]}  Rb7 {[%clk 0:00:13]} 25. Nbd6+ {[%clk 0:00:57]} 1-0


[Site "https://www.chess.com"]

[Event "Titled Tuesday Blitz November 07 Late 2023"]
[White "Deac, Bogdan-Daniel"]
[Black "Pranav, V"]
[WhiteFideId "1226380"]
[BlackFideId "25060783"]
[WhiteElo "2982"]
[BlackElo "3070"]
[Result "1/2-1/2"]
[Round "6"]
[TimeControl "180+1"]
[Date "2023.11.07"]
[WhiteClock "0:00:04"]
[BlackClock "0:00:03"]
[Board "4"]

1. d4 {[%clk 0:03:00]}  Nf6 {[%clk 0:02:59]} 2. Bf4 {[%clk 0:03:00]}  d5 {[%clk 0:02:56]} 3. e3 {[%clk 0:03:00]}  c5 {[%clk 0:02:56]} 4. Nd2 {[%clk 0:03:00]}  Nc6 {[%clk 0:02:56]} 5. c3 {[%clk 0:03:00]}  cxd4 {[%clk 0:02:55]} 6. exd4 {[%clk 0:03:00]}  Bf5 {[%clk 0:02:54]} 7. Qb3 {[%clk 0:03:00]}  Qc8 {[%clk 0:02:54]} 8. Ngf3 {[%clk 0:02:59]}  e6 {[%clk 0:02:54]} 9. Nh4 {[%clk 0:02:59]}  Bg6 {[%clk 0:02:53]} 10. Nxg6 {[%clk 0:02:56]}  hxg6 {[%clk 0:02:54]} 11. Bd3 {[%clk 0:02:56]}  Nh5 {[%clk 0:02:51]} 12. Be3 {[%clk 0:02:52]}  Bd6 {[%clk 0:02:51]} 13. g3 {[%clk 0:02:51]}  Nf6 {[%clk 0:02:48]} 14. Nf3 {[%clk 0:02:51]}  Qc7 {[%clk 0:02:44]} 15. Qc2 {[%clk 0:02:43]}  O-O-O {[%clk 0:02:38]} 16. O-O-O {[%clk 0:02:37]}  Kb8 {[%clk 0:02:32]} 17. Kb1 {[%clk 0:02:33]}  Ka8 {[%clk 0:02:32]} 18. Qe2 {[%clk 0:02:30]}  Rhe8 {[%clk 0:02:27]} 19. Rhe1 {[%clk 0:02:27]}  a6 {[%clk 0:02:07]} 20. h4 {[%clk 0:02:25]}  Na5 {[%clk 0:01:53]} 21. Ne5 {[%clk 0:02:19]}  Bxe5 {[%clk 0:01:48]} 22. dxe5 {[%clk 0:02:18]}  Nd7 {[%clk 0:01:49]} 23. f4 {[%clk 0:02:15]}  Rc8 {[%clk 0:01:41]} 24. h5 {[%clk 0:02:06]}  gxh5 {[%clk 0:01:40]} 25. Qxh5 {[%clk 0:02:07]}  g6 {[%clk 0:01:40]} 26. Qh7 {[%clk 0:02:07]}  Rf8 {[%clk 0:01:36]} 27. Qh2 {[%clk 0:01:49]}  Nc4 {[%clk 0:01:17]} 28. Bc1 {[%clk 0:01:48]}  Nc5 {[%clk 0:01:10]} 29. Bc2 {[%clk 0:01:48]}  Rh8 {[%clk 0:00:59]} 30. Qg1 {[%clk 0:01:38]}  Rh3 {[%clk 0:00:51]} 31. b3 {[%clk 0:01:31]}  Nb6 {[%clk 0:00:50]} 32. Be3 {[%clk 0:01:24]}  Nbd7 {[%clk 0:00:46]} 33. Bd4 {[%clk 0:01:22]}  Nb8 {[%clk 0:00:44]} 34. Qg2 {[%clk 0:01:00]}  Rhh8 {[%clk 0:00:43]} 35. Rh1 {[%clk 0:00:59]}  Ncd7 {[%clk 0:00:43]} 36. Rxh8 {[%clk 0:00:55]}  Rxh8 {[%clk 0:00:44]} 37. Rh1 {[%clk 0:00:55]}  Qd8 {[%clk 0:00:44]} 38. Rxh8 {[%clk 0:00:45]}  Qxh8 {[%clk 0:00:45]} 39. Bd3 {[%clk 0:00:45]}  Nc6 {[%clk 0:00:45]} 40. Be3 {[%clk 0:00:45]}  g5 {[%clk 0:00:41]} 41. Kb2 {[%clk 0:00:44]}  gxf4 {[%clk 0:00:31]} 42. gxf4 {[%clk 0:00:45]}  f6 {[%clk 0:00:30]} 43. exf6 {[%clk 0:00:37]}  Qxf6 {[%clk 0:00:30]} 44. Qg8+ {[%clk 0:00:19]}  Ndb8 {[%clk 0:00:29]} 45. Qg5 {[%clk 0:00:10]}  Qh8 {[%clk 0:00:29]} 46. f5 {[%clk 0:00:10]}  exf5 {[%clk 0:00:26]} 47. Qxf5 {[%clk 0:00:07]}  d4 {[%clk 0:00:25]} 48. Bd2 {[%clk 0:00:03]}  Qh2 {[%clk 0:00:24]} 49. Kc1 {[%clk 0:00:02]}  dxc3 {[%clk 0:00:23]} 50. Bxc3 {[%clk 0:00:03]}  Qxa2 {[%clk 0:00:23]} 51. Bc2 {[%clk 0:00:03]}  Qa3+ {[%clk 0:00:21]} 52. Kd1 {[%clk 0:00:03]}  Qd6+ {[%clk 0:00:21]} 53. Qd3 {[%clk 0:00:03]}  Qf4 {[%clk 0:00:20]} 54. Qd2 {[%clk 0:00:03]}  Qf3+ {[%clk 0:00:16]} 55. Kc1 {[%clk 0:00:03]}  Qf8 {[%clk 0:00:16]} 56. Kb2 {[%clk 0:00:03]}  Qe7 {[%clk 0:00:16]} 57. b4 {[%clk 0:00:03]}  Na7 {[%clk 0:00:15]} 58. Bd3 {[%clk 0:00:03]}  Nbc6 {[%clk 0:00:13]} 59. Qe2 {[%clk 0:00:03]}  Qf8 {[%clk 0:00:10]} 60. b5 {[%clk 0:00:03]}  axb5 {[%clk 0:00:09]} 61. Bxb5 {[%clk 0:00:04]}  Nxb5 {[%clk 0:00:09]} 62. Qxb5 {[%clk 0:00:05]}  Qf2+ {[%clk 0:00:09]} 63. Kb3 {[%clk 0:00:05]}  Qe3 {[%clk 0:00:09]} 64. Qa4+ {[%clk 0:00:05]}  Kb8 {[%clk 0:00:09]} 65. Kb2 {[%clk 0:00:05]}  Qe2+ {[%clk 0:00:09]} 66. Qc2 {[%clk 0:00:05]}  Qb5+ {[%clk 0:00:09]} 67. Qb3 {[%clk 0:00:06]}  Qc5 {[%clk 0:00:09]} 68. Qg8+ {[%clk 0:00:05]}  Ka7 {[%clk 0:00:09]} 69. Qa2+ {[%clk 0:00:05]}  Kb6 {[%clk 0:00:09]} 70. Qb3+ {[%clk 0:00:05]}  Ka6 {[%clk 0:00:06]} 71. Qa2+ {[%clk 0:00:05]}  Na5 {[%clk 0:00:06]} 72. Qa4 {[%clk 0:00:04]}  Qf2+ {[%clk 0:00:04]} 73. Kb1 {[%clk 0:00:04]}  Qb6+ {[%clk 0:00:04]} 74. Kc2 {[%clk 0:00:04]}  Qc5 {[%clk 0:00:04]} 75. Qb4 {[%clk 0:00:03]}  Qf5+ {[%clk 0:00:03]} 76. Kb2 {[%clk 0:00:03]}  Nc6 {[%clk 0:00:03]} 77. Qa4+ {[%clk 0:00:03]}  Kb6 {[%clk 0:00:04]} 78. Qb3+ {[%clk 0:00:04]}  Kc7 {[%clk 0:00:04]} 79. Qc4 {[%clk 0:00:04]}  b5 {[%clk 0:00:03]} 80. Qe2 {[%clk 0:00:04]}  Qd5 {[%clk 0:00:02]} 81. Qd2 {[%clk 0:00:03]}  Qc5 {[%clk 0:00:02]} 82. Ba5+ {[%clk 0:00:03]}  Kb7 {[%clk 0:00:02]} 83. Qd7+ {[%clk 0:00:03]}  Ka6 {[%clk 0:00:03]} 84. Bd2 {[%clk 0:00:03]}  b4 {[%clk 0:00:03]} 85. Qd3+ {[%clk 0:00:03]}  Kb7 {[%clk 0:00:02]} 86. Qd7+ {[%clk 0:00:03]}  Ka6 {[%clk 0:00:03]} 87. Qe6 {[%clk 0:00:03]}  Qd4+ {[%clk 0:00:02]} 88. Kc2 {[%clk 0:00:03]}  Kb5 {[%clk 0:00:03]} 89. Qb3 {[%clk 0:00:02]}  Qe4+ {[%clk 0:00:03]} 90. Kc1 {[%clk 0:00:03]}  Qh1+ {[%clk 0:00:02]} 91. Qd1 {[%clk 0:00:02]}  Qd5 {[%clk 0:00:02]} 92. Qe2+ {[%clk 0:00:02]}  Kb6 {[%clk 0:00:02]} 93. Kb2 {[%clk 0:00:02]}  Qd4+ {[%clk 0:00:02]} 94. Kb1 {[%clk 0:00:02]}  Qd5 {[%clk 0:00:02]} 95. Qe3+ {[%clk 0:00:02]}  Kb5 {[%clk 0:00:02]} 96. Kb2 {[%clk 0:00:03]}  Na5 {[%clk 0:00:02]} 97. Qe8+ {[%clk 0:00:02]}  Kc4 {[%clk 0:00:02]} 98. Qe2+ {[%clk 0:00:02]}  Kc5 {[%clk 0:00:02]} 99. Qe7+ {[%clk 0:00:02]}  Kb5 {[%clk 0:00:02]} 100. Qxb4+ {[%clk 0:00:02]}  Ka6 {[%clk 0:00:02]} 101. Qxa5+ {[%clk 0:00:03]}  Qxa5 {[%clk 0:00:03]} 102. Bxa5 {[%clk 0:00:04]} 1/2-1/2


[Site "https://www.chess.com"]

[Event "Titled Tuesday Blitz November 07 Late 2023"]
[White "Firouzja, Alireza"]
[Black "Elsa167"]
[WhiteFideId "12573981"]
[WhiteElo "3067"]
[BlackElo "2981"]
[Result "1-0"]
[Round "6"]
[TimeControl "180+1"]
[Date "2023.11.07"]
[WhiteClock "0:02:03"]
[BlackClock "0:00:00"]
[Board "5"]

1. d4 {[%clk 0:02:57]}  e6 {[%clk 0:02:58]} 2. c4 {[%clk 0:02:57]}  Nf6 {[%clk 0:02:58]} 3. Nc3 {[%clk 0:02:57]}  d5 {[%clk 0:02:58]} 4. cxd5 {[%clk 0:02:57]}  exd5 {[%clk 0:02:59]} 5. Bg5 {[%clk 0:02:57]}  Be7 {[%clk 0:02:59]} 6. e3 {[%clk 0:02:58]}  O-O {[%clk 0:02:59]} 7. Bd3 {[%clk 0:02:58]}  Re8 {[%clk 0:02:59]} 8. Nge2 {[%clk 0:02:58]}  c6 {[%clk 0:02:56]} 9. O-O {[%clk 0:02:57]}  h6 {[%clk 0:02:51]} 10. Bh4 {[%clk 0:02:57]}  a5 {[%clk 0:02:49]} 11. Rc1 {[%clk 0:02:54]}  Na6 {[%clk 0:02:48]} 12. f3 {[%clk 0:02:55]}  Nc7 {[%clk 0:02:40]} 13. Bf2 {[%clk 0:02:54]}  Ne6 {[%clk 0:02:34]} 14. Kh1 {[%clk 0:02:54]}  b5 {[%clk 0:02:34]} 15. e4 {[%clk 0:02:53]}  b4 {[%clk 0:01:47]} 16. Na4 {[%clk 0:02:49]}  dxe4 {[%clk 0:01:47]} 17. fxe4 {[%clk 0:02:50]}  Ng4 {[%clk 0:01:45]} 18. Bg1 {[%clk 0:02:50]}  Bg5 {[%clk 0:01:45]} 19. Rxc6 {[%clk 0:02:50]}  Bd7 {[%clk 0:01:13]} 20. Rc4 {[%clk 0:02:48]}  Be3 {[%clk 0:01:02]} 21. d5 {[%clk 0:02:47]}  Bxg1 {[%clk 0:01:00]} 22. Nxg1 {[%clk 0:02:47]}  Ne3 {[%clk 0:00:46]} 23. Qb3 {[%clk 0:02:37]}  Nxf1 {[%clk 0:00:34]} 24. dxe6 {[%clk 0:02:31]}  Bxe6 {[%clk 0:00:32]} 25. Bxf1 {[%clk 0:02:31]}  Qf6 {[%clk 0:00:26]} 26. Nf3 {[%clk 0:02:28]}  Rad8 {[%clk 0:00:26]} 27. Nc5 {[%clk 0:02:23]}  Bxc4 {[%clk 0:00:22]} 28. Bxc4 {[%clk 0:02:24]}  Re7 {[%clk 0:00:18]} 29. h3 {[%clk 0:02:21]}  Qf4 {[%clk 0:00:18]} 30. e5 {[%clk 0:02:14]}  Qc1+ {[%clk 0:00:17]} 31. Kh2 {[%clk 0:02:12]}  Qf4+ {[%clk 0:00:17]} 32. Kh1 {[%clk 0:02:11]}  Qc1+ {[%clk 0:00:17]} 33. Kh2 {[%clk 0:02:12]}  Qf4+ {[%clk 0:00:17]} 34. Kg1 {[%clk 0:02:12]}  Qc1+ {[%clk 0:00:16]} 35. Kf2 {[%clk 0:02:12]}  Qf4 {[%clk 0:00:08]} 36. e6 {[%clk 0:02:06]}  Rd2+ {[%clk 0:00:03]} 37. Kg1 {[%clk 0:02:06]}  fxe6 {[%clk 0:00:02]} 38. Nxe6 {[%clk 0:02:04]}  Rd1+ {[%clk 0:00:01]} 39. Qxd1 {[%clk 0:02:04]}  Qxc4 {[%clk 0:00:02]} 40. Qd8+ {[%clk 0:02:03]}  Re8 {[%clk 0:00:00]} 41. Qxe8+ {[%clk 0:02:03]} 1-0


[Site "https://www.chess.com"]